bitfinex/quotes_SOLUSD_20241110
["timestamp","ask_amount","ask_price","bid_price","bid_amount"]
[1731200344573,21.54346452,200.36,200.3,21.54346452]
[1731200344886,21.54346452,200.35,200.29,21.54346452]
[1731200346191,21.54346452,200.35,200.29,41.54346452]
[1731200346488,21.54346452,200.35,200.29,20.0]
[1731200346687,21.54346452,200.34,200.29,20.0]
[1731200346885,21.54346452,200.33,200.27,21.54346452]
[1731200347069,21.54346452,200.33,200.27,20.0]
[1731200347679,21.54346452,200.35,200.29,21.54346452]
[1731200347879,21.54346452,200.34,200.28,21.54346452]
[1731200348084,21.54346452,200.35,200.29,41.54346452]
[1731200348386,21.54346452,200.36,200.29,41.54346452]
[1731200348893,21.54346452,200.4,200.34,21.54346452]
[1731200349200,21.54346452,200.43,200.37,20.0]
[1731200349500,21.54346452,200.44,200.38,21.54346452]
[1731200349873,21.54346452,200.45,200.38,21.54346452]
[1731200350269,21.54346452,200.45,200.39,41.54346452]
[1731200350491,6.493,200.51,200.39,41.54346452]
[1731200350492,21.54346452,200.46,200.39,41.54346452]
[1731200350788,21.54346452,200.47,200.41,21.54346452]
[1731200350970,21.54346452,200.49,200.42,41.54346452]
[1731200351292,21.54346452,200.49,200.44,20.0]
[1731200352274,21.54346452,200.48,200.41,21.54346452]
[1731200352672,21.54346452,200.48,200.42,20.0]
[1731200353190,21.54346452,200.44,200.37,23.776884]
[1731200353397,21.54346452,200.43,200.37,23.776884]
[1731200353697,160.7,200.49,200.37,23.776884]
[1731200353991,21.54346452,200.45,200.38,21.54346452]
[1731200354197,21.54346452,200.45,200.39,45.32034852]
[1731200354382,21.54346452,200.45,200.39,21.54346452]
[1731200355187,21.54346452,200.45,200.37,23.776884]
[1731200355188,21.54346452,200.44,200.38,20.0]
[1731200355368,21.54346452,200.45,200.38,41.54346452]
[1731200355572,160.7,200.47,200.44,21.54346452]
[1731200355773,21.54346452,200.52,200.45,21.54346452]
[1731200355991,21.54346452,200.51,200.46,20.0]
[1731200356289,160.7,200.53,200.46,20.0]
[1731200356491,160.7,200.53,200.39,23.776884]
[1731200356492,6.6009,200.62,200.5,23.776884]
[1731200356692,6.6009,200.62,200.51,20.0]
[1731200357198,6.6009,200.62,200.5,20.0]
[1731200357700,21.54346452,200.54,200.5,20.0]
[1731200357875,21.54346452,200.54,200.48,20.0]
[1731200358406,21.54346452,200.53,200.48,20.0]
[1731200358696,21.54346452,200.52,200.47,16.0321]
[1731200359080,21.54346452,200.51,200.46,23.776884]
[1731200359608,21.54346452,200.53,200.47,23.776884]
[1731200359786,21.54346452,200.52,200.47,23.776884]
[1731200360173,21.54346452,200.51,200.45,45.32034852]
[1731200360496,21.54346452,200.51,200.46,20.0]
[1731200361198,21.54346452,200.5,200.46,20.0]
[1731200361379,21.54346452,200.47,200.42,16.0321]
[1731200361692,21.54346452,200.47,200.43,23.776884]
[1731200361896,21.54346452,200.47,200.42,16.0321]
[1731200362095,21.54346452,200.44,200.38,44.01956452]
[1731200362783,21.54346452,200.45,200.38,44.01956452]
[1731200363180,21.54346452,200.44,200.38,44.01956452]
[1731200363392,21.54346452,200.44,200.39,20.0]
[1731200363800,21.54346452,200.43,200.39,20.0]
[1731200364705,21.54346452,200.4,200.37,4.986]
[1731200364881,21.54346452,200.41,200.36,4.986]
[1731200365088,21.54346452,200.42,200.36,4.986]
[1731200366016,21.54346452,200.41,200.37,4.986]
[1731200366987,21.54346452,200.38,200.34,16.0321]
[1731200367194,21.54346452,200.36,200.3,21.54346452]
[1731200367498,21.54346452,200.38,200.32,21.54346452]
[1731200368182,21.54346452,200.38,200.31,21.54346452]
[1731200368379,21.54346452,200.38,200.32,21.54346452]
[1731200368603,21.54346452,200.38,200.31,21.54346452]
[1731200368786,21.54346452,200.38,200.32,23.776884]
[1731200368986,21.54346452,200.38,200.3,23.776884]
[1731200369202,21.54346452,200.37,200.32,23.776884]
[1731200369409,13.44349186,200.38,200.33,20.0]
[1731200370411,13.44349186,200.37,200.33,20.0]
[1731200370706,13.44349186,200.36,200.32,20.0]
[1731200371099,13.44349186,200.36,200.31,20.0]
[1731200371295,13.44349186,200.35,200.31,20.0]
[1731200371609,13.44349186,200.32,200.24,23.26226198]
[1731200371805,13.44349186,200.33,200.26,13.44349186]
[1731200372098,13.44349186,200.32,200.26,13.44349186]
[1731200372306,13.44349186,200.33,200.27,13.44349186]
[1731200372504,13.44349186,200.35,200.29,13.44349186]
[1731200372800,13.44349186,200.37,200.31,37.22037586]
[1731200372987,6.6078,200.4,200.32,20.0]
[1731200372988,13.44349186,200.38,200.32,20.0]
[1731200373191,13.44349186,200.37,200.32,20.0]
[1731200374389,13.44349186,200.38,200.32,33.44349186]
[1731200374993,13.44349186,200.39,200.32,33.44349186]
[1731200375386,13.44349186,200.38,200.32,33.44349186]
[1731200375589,13.44349186,200.39,200.33,13.44349186]
[1731200375885,13.44349186,200.38,200.32,33.44349186]
[1731200377502,13.44349186,200.41,200.35,13.44349186]
[1731200377700,13.44349186,200.42,200.35,13.44349186]
[1731200378502,13.44349186,200.4,200.34,37.22037586]
[1731200378709,13.44349186,200.4,200.35,20.0]
[1731200379086,13.44349186,200.39,200.35,20.0]
[1731200379287,13.44349186,200.37,200.3,13.44349186]
[1731200379517,13.44349186,200.36,200.31,23.776884]
[1731200380105,13.44349186,200.35,200.29,1.42]
[1731200380311,13.44349186,200.34,200.29,1.42]
[1731200380496,13.44349186,200.36,200.3,13.44349186]
[1731200381086,13.44349186,200.37,200.3,13.44349186]
[1731200381309,13.44349186,200.38,200.32,13.44349186]
[1731200381505,13.44349186,200.39,200.33,20.0]
[1731200381713,13.44349186,200.4,200.34,13.44349186]
[1731200381894,13.44349186,200.41,200.35,33.44349186]
[1731200382608,13.44349186,200.4,200.35,20.0]
[1731200384305,13.44349186,200.42,200.36,37.22037586]
[1731200384492,13.44349186,200.43,200.36,37.22037586]
[1731200384687,13.44349186,200.44,200.37,33.44349186]
[1731200384906,13.41779186,200.46,200.39,37.22037586]
[1731200385212,13.44349186,200.48,200.42,37.22037586]
[1731200386104,13.44349186,200.47,200.42,23.776884]
[1731200386893,13.44349186,200.43,200.37,23.776884]
[1731200387097,13.44349186,200.41,200.34,14.86349186]
[1731200388107,13.44349186,200.4,200.34,1.42]
[1731200388515,13.44349186,200.39,200.35,23.776884]
[1731200388706,13.44349186,200.39,200.36,20.0]
[1731200390495,13.44349186,200.38,200.33,15.5391]
[1731200390706,13.44349186,200.38,200.34,23.776884]
[1731200390921,13.44349186,200.37,200.34,23.776884]
[1731200391304,13.44349186,200.38,200.34,23.776884]
[1731200391620,13.44349186,200.39,200.34,23.776884]
[1731200391802,13.44349186,200.38,200.34,23.776884]
[1731200392703,13.44349186,200.39,200.35,20.0]
[1731200392900,13.44349186,200.4,200.35,20.0]
[1731200393105,160.7,200.46,200.37,33.44349186]
[1731200393106,13.44349186,200.44,200.37,33.44349186]
[1731200393819,13.44349186,200.44,200.38,37.22037586]
[1731200394017,174.14349186,200.46,200.4,37.22037586]
[1731200394205,13.44349186,200.47,200.41,20.0]
[1731200394707,13.44349186,200.46,200.41,20.0]
[1731200396116,13.44349186,200.45,200.41,20.0]
[1731200398919,160.7,200.49,200.43,20.0]
[1731200398920,13.44349186,200.49,200.43,20.0]
[1731200399123,13.44349186,200.5,200.43,33.44349186]
[1731200399325,13.44349186,200.49,200.43,20.0]
[1731200399516,13.44349186,200.48,200.43,20.0]
[1731200400413,13.44349186,200.47,200.43,20.0]
[1731200400803,13.44349186,200.49,200.43,33.44349186]
[1731200401007,13.44349186,200.5,200.44,23.776884]
[1731200401212,6.3411,200.55,200.42,39.830784]
[1731200401213,13.44349186,200.55,200.49,37.22037586]
[1731200401609,13.44349186,200.51,200.47,20.0]
[1731200401804,0.1,200.56,200.43,23.776884]
[1731200402004,160.7,200.55,200.44,20.0]
[1731200402208,13.44349186,200.47,200.44,20.0]
[1731200402619,13.44349186,200.45,200.42,16.0539]
[1731200402824,13.44349186,200.43,200.37,22.1848]
[1731200403026,6.1876,200.51,200.42,13.44349186]
[1731200403027,6.0876,200.51,200.42,13.44349186]
[1731200403331,15.9266,200.53,200.37,22.1848]
[1731200403510,6.0876,200.56,200.37,22.2848]
[1731200403844,13.44349186,200.5,200.43,13.44349186]
[1731200404032,13.44349186,200.49,200.44,20.0]
[1731200404930,13.44349186,200.47,200.4,13.44349186]
[1731200405234,13.44349186,200.47,200.41,57.22037586]
[1731200405422,13.44349186,200.48,200.43,20.0]
[1731200405810,13.44349186,200.47,200.43,20.0]
[1731200406006,13.44349186,200.47,200.42,20.0]
[1731200406323,13.44349186,200.52,200.46,33.44349186]
[1731200406517,13.44349186,200.53,200.47,20.0]
[1731200406907,13.44349186,200.54,200.47,33.44349186]
[1731200407127,13.44349186,200.54,200.49,20.0]
[1731200407331,21.46878335,200.56,200.51,20.0]
[1731200407711,6.0876,200.61,200.51,20.0]
[1731200407712,21.46878335,200.58,200.51,41.46878335]
[1731200408030,6.0876,200.67,200.56,21.46878335]
[1731200408332,6.0876,200.67,200.54,23.776884]
[1731200408516,21.46878335,200.61,200.55,41.46878335]
[1731200408710,21.46878335,200.63,200.57,41.46878335]
[1731200408915,21.46878335,200.61,200.57,20.0]
[1731200409135,21.46878335,200.62,200.57,20.0]
[1731200410219,21.46878335,200.63,200.57,41.46878335]
[1731200410625,21.46878335,200.66,200.6,20.0]
[1731200410823,21.46878335,200.67,200.6,41.46878335]
[1731200411341,21.46878335,200.68,200.62,21.46878335]
[1731200411513,21.46878335,200.7,200.63,41.46878335]
[1731200411714,6.6624,200.77,200.64,21.46878335]
[1731200411912,21.46878335,200.7,200.65,20.0]
[1731200412140,21.46878335,200.69,200.65,20.0]
[1731200412319,21.46878335,200.69,200.64,20.0]
[1731200412515,21.46878335,200.67,200.63,20.0]
[1731200412717,21.46878335,200.67,200.62,20.0]
[1731200412930,21.46878335,200.63,200.56,67.59036735]
[1731200413134,21.46878335,200.64,200.58,23.776884]
[1731200413433,21.46878335,200.62,200.58,23.776884]
[1731200413621,21.46878335,200.62,200.57,23.776884]
[1731200414229,21.46878335,200.62,200.58,20.0]
[1731200414635,21.46878335,200.7,200.56,43.81348335]
[1731200414636,21.46878335,200.6,200.56,16.0169]
[1731200414838,21.46878335,200.57,200.56,16.0169]
[1731200415337,21.46878335,200.57,200.51,21.2676]
[1731200415543,21.46878335,200.56,200.51,15.1813]
[1731200416031,21.46878335,200.56,200.52,20.0]
[1731200416239,21.46878335,200.58,200.52,41.46878335]
[1731200416439,21.46878335,200.58,200.52,21.46878335]
[1731200416647,21.46878335,200.6,200.54,21.46878335]
[1731200416834,21.46878335,200.61,200.55,21.46878335]
[1731200417052,22.4932,200.67,200.52,23.776884]
[1731200417348,21.46878335,200.59,200.52,45.24566735]
[1731200417727,21.46878335,200.59,200.55,20.0]
[1731200418134,21.46878335,200.56,200.53,20.0]
[1731200418821,21.46878335,200.55,200.52,20.0]
[1731200419028,21.46878335,200.54,200.52,20.0]
[1731200419236,21.46878335,200.54,200.51,15.1813]
[1731200419547,21.46878335,200.52,200.46,44.21478335]
[1731200419725,21.46878335,200.53,200.46,44.21478335]
[1731200419922,21.46878335,200.53,200.47,21.46878335]
[1731200420244,21.46878335,200.57,200.51,21.46878335]
[1731200420450,21.46878335,200.59,200.52,21.46878335]
[1731200420823,21.46878335,200.59,200.53,21.46878335]
[1731200421148,21.46878335,200.6,200.55,20.0]
[1731200421350,21.46878335,200.58,200.51,21.46878335]
[1731200421551,21.46878335,200.53,200.46,44.21478335]
[1731200421855,21.46878335,200.48,200.46,16.6597]
[1731200422441,21.46878335,200.47,200.46,16.6597]
[1731200422641,21.46878335,200.47,200.41,38.12848335]
[1731200423032,21.46878335,200.48,200.41,38.12848335]
[1731200423234,21.46878335,200.48,200.42,23.776884]
[1731200423435,21.46878335,200.48,200.42,45.24566735]
[1731200423733,21.46878335,200.48,200.43,20.0]
[1731200424045,160.7,200.56,200.41,16.6597]
[1731200424046,21.46878335,200.45,200.41,16.6597]
[1731200424246,21.46878335,200.5,200.41,16.6597]
[1731200424247,21.46878335,200.44,200.41,16.6597]
[1731200424428,21.46878335,200.43,200.41,16.6597]
[1731200424629,21.46878335,200.43,200.37,21.46878335]
[1731200424824,21.46878335,200.42,200.36,16.6597]
[1731200425140,6.1055,200.47,200.37,21.46878335]
[1731200425330,21.46878335,200.42,200.36,38.12848335]
[1731200425530,21.46878335,200.41,200.36,16.6597]
[1731200425834,21.46878335,200.4,200.36,16.6597]
[1731200426543,21.46878335,200.4,200.33,21.46878335]
[1731200427329,21.46878335,200.41,200.35,21.46878335]
[1731200428245,21.46878335,200.41,200.36,20.0]
[1731200428627,21.46878335,200.4,200.35,20.0]
[1731200429242,21.46878335,200.41,200.35,41.46878335]
[1731200429450,6.1055,200.47,200.39,41.46878335]
[1731200429762,15.3824,200.48,200.41,21.46878335]
[1731200429763,21.46878335,200.48,200.41,21.46878335]
[1731200430134,21.46878335,200.46,200.41,20.0]
[1731200430353,21.46878335,200.45,200.41,20.0]
[1731200430654,21.46878335,200.45,200.39,16.6597]
[1731200430655,21.46878335,200.45,200.4,20.0]
[1731200431352,21.46878335,200.47,200.42,20.0]
[1731200431532,21.46878335,200.46,200.4,41.46878335]
[1731200432065,21.46878335,200.45,200.4,20.0]
[1731200433244,21.46878335,200.46,200.4,41.46878335]
[1731200434062,21.46878335,200.46,200.4,20.0]
[1731200434951,21.46878335,200.46,200.4,41.46878335]
[1731200436061,21.46878335,200.46,200.4,20.0]
[1731200436361,21.46878335,200.41,200.33,36.73848335]
[1731200436549,21.46878335,200.41,200.34,21.46878335]
[1731200436855,21.46878335,200.4,200.33,36.73848335]
[1731200437060,21.46878335,200.41,200.34,21.46878335]
[1731200437441,21.46878335,200.4,200.33,36.73848335]
[1731200437641,21.46878335,200.4,200.34,23.776884]
[1731200438646,21.46878335,200.4,200.35,20.0]
[1731200438959,21.46878335,200.36,200.33,15.2697]
[1731200439141,21.46878335,200.37,200.33,15.2697]
[1731200439541,21.46878335,200.34,200.28,15.2697]
[1731200439762,21.46878335,200.33,200.28,15.2697]
[1731200440260,21.46878335,200.32,200.28,15.2697]
[1731200441571,21.46878335,200.29,200.23,6.2732]
[1731200441864,21.46878335,200.28,200.23,6.2732]
[1731200442166,21.46878335,200.3,200.24,21.46878335]
[1731200442465,21.46878335,200.29,200.23,27.74198335]
[1731200442644,21.46878335,200.3,200.24,21.46878335]
[1731200442846,21.46878335,200.28,200.24,20.0]
[1731200443054,21.46878335,200.28,200.23,20.0]
[1731200443362,21.46878335,200.25,200.22,15.2697]
[1731200443670,21.46878335,200.23,200.18,8.43318703]
[1731200443853,21.46878335,200.24,200.18,29.90197038]
[1731200444072,21.46878335,200.24,200.18,27.74198335]
[1731200444656,21.46878335,200.22,200.17,15.2697]
[1731200444854,21.46878335,200.2,200.17,15.2697]
[1731200445147,21.46878335,200.21,200.17,15.2697]
[1731200445345,21.46878335,200.18,200.1,21.46878335]
[1731200445646,21.46878335,200.18,200.12,21.46878335]
[1731200445865,21.46878335,200.18,200.11,21.46878335]
[1731200446044,21.46878335,200.18,200.12,21.46878335]
[1731200447083,21.46878335,200.2,200.13,41.46878335]
[1731200447361,21.46878335,200.2,200.14,21.46878335]
[1731200447559,21.46878335,200.22,200.16,21.46878335]
[1731200447764,21.46878335,200.3,200.16,21.46878335]
[1731200447765,21.46878335,200.24,200.18,21.46878335]
[1731200448153,21.46878335,200.25,200.19,21.46878335]
[1731200448661,21.46878335,200.26,200.2,20.0]
[1731200448866,21.46878335,200.27,200.21,21.46878335]
[1731200449171,21.46878335,200.27,200.22,20.0]
[1731200449862,21.46878335,200.24,200.2,20.0]
[1731200450072,21.46878335,200.23,200.19,20.0]
[1731200450259,21.46878335,200.21,200.16,23.776884]
[1731200450443,21.46878335,200.22,200.16,23.776884]
[1731200450771,21.46878335,200.2,200.13,36.73848335]
[1731200451278,21.46878335,200.19,200.13,36.73848335]
[1731200451472,21.46878335,200.18,200.13,12.2697]
[1731200451650,21.46878335,200.17,200.13,12.2697]
[1731200451850,21.46878335,200.18,200.13,12.2697]
[1731200452166,21.46878335,200.17,200.13,12.2697]
[1731200452360,21.46878335,200.16,200.13,12.2697]
[1731200452552,21.45906662,200.17,200.13,12.2697]
[1731200452752,21.46878335,200.18,200.13,12.2697]
[1731200452949,21.46878335,200.17,200.13,12.2697]
[1731200453370,21.46878335,200.18,200.13,12.2697]
[1731200454167,21.46878335,200.19,200.13,12.2697]
[1731200454767,21.46878335,200.23,200.17,21.46878335]
[1731200454968,0.1,200.36,200.22,41.46878335]
[1731200455168,6.1179,200.37,200.26,20.0]
[1731200455476,6.1179,200.37,200.28,20.0]
[1731200455655,6.2179,200.37,200.26,20.0]
[1731200455850,0.1,200.35,200.23,16.4051]
[1731200456073,0.2,200.35,200.19,43.776884]
[1731200456253,6.3179,200.37,200.19,43.776884]
[1731200456654,21.46878335,200.28,200.22,41.46878335]
[1731200456864,21.46878335,200.28,200.23,20.0]
[1731200457564,21.46878335,200.27,200.19,20.0]
[1731200457872,0.1,200.33,200.2,21.46878335]
[1731200458065,21.46878335,200.27,200.21,20.0]
[1731200458374,21.46878335,200.25,200.2,20.0]
[1731200458571,21.46878335,200.26,200.2,41.46878335]
[1731200460260,21.46878335,200.26,200.19,41.46878335]
[1731200460462,21.46878335,200.3,200.24,21.46878335]
[1731200460670,21.46878335,200.31,200.25,21.46878335]
[1731200460857,21.46878335,200.31,200.24,21.46878335]
[1731200461057,21.46878335,200.31,200.25,20.0]
[1731200462474,21.46878335,200.32,200.25,41.46878335]
[1731200462658,21.46878335,200.32,200.27,20.0]
[1731200462860,6.1179,200.37,200.27,41.46878335]
[1731200462861,21.46878335,200.34,200.27,41.46878335]
[1731200463480,21.46878335,200.34,200.28,21.46878335]
[1731200463691,21.46878335,200.32,200.25,21.46878335]
[1731200463874,6.1179,200.37,200.24,21.46878335]
[1731200463875,21.46878335,200.31,200.24,21.46878335]
[1731200464061,21.46878335,200.31,200.25,20.0]
[1731200464776,21.46878335,200.26,200.18,16.4051]
[1731200465083,21.46878335,200.21,200.14,21.46878335]
[1731200465581,21.46878335,200.2,200.13,27.80098335]
[1731200465992,21.46878335,200.21,200.15,21.46878335]
[1731200466688,21.46878335,200.2,200.13,27.80098335]
[1731200466875,21.46878335,200.2,200.14,21.46878335]
[1731200467578,21.46878335,200.19,200.13,21.46878335]
[1731200467764,21.46878335,200.2,200.15,20.0]
[1731200467960,21.46878335,200.2,200.13,20.0]
[1731200468164,21.46878335,200.18,200.13,20.0]
[1731200468384,21.46878335,200.18,200.12,15.1997]
[1731200468962,21.46878335,200.17,200.12,15.1997]
[1731200469277,21.46878335,200.16,200.09,21.46878335]
[1731200469591,21.46878335,200.15,200.09,20.0]
[1731200469761,21.46878335,200.16,200.09,41.46878335]
[1731200471178,21.46878335,200.16,200.1,21.46878335]
[1731200471366,21.46878335,200.19,200.12,21.46878335]
[1731200471573,21.46878335,200.18,200.13,20.0]
[1731200471885,21.46878335,200.17,200.13,20.0]
[1731200472073,21.46878335,200.16,200.09,41.46878335]
[1731200472260,21.46878335,200.15,200.09,41.46878335]
[1731200472682,21.46878335,200.15,200.08,21.46878335]
[1731200472864,21.46878335,200.14,200.07,23.59676287]
[1731200473073,21.46878335,200.13,200.07,23.59676287]
[1731200473264,21.46878335,200.11,200.05,21.46878335]
[1731200473465,21.46878335,200.11,200.05,21.59878335]
[1731200473986,21.46878335,200.1,200.05,0.13]
[1731200474161,21.46878335,200.09,200.05,0.13]
[1731200474361,21.46878335,200.1,200.04,15.6487]
[1731200474582,21.46878335,200.09,200.04,15.6487]
[1731200475469,21.46878335,200.08,200.02,21.46878335]
[1731200475788,21.46878335,200.09,200.03,20.0]
[1731200476666,21.46878335,200.07,200.02,20.0]
[1731200477371,21.46878335,200.06,200.0,23.66423954]
[1731200477689,21.46878335,200.06,199.99,15.6487]
[1731200477690,21.46878335,200.05,199.99,15.6487]
[1731200478263,21.46878335,200.05,199.99,17.84209007]
[1731200478586,21.46878335,200.05,200.0,20.0]
[1731200479087,21.46878335,200.07,200.02,20.0]
[1731200479974,21.46878335,200.09,200.03,21.46878335]
[1731200480487,21.46878335,200.1,200.04,21.46878335]
[1731200480672,21.46878335,200.11,200.05,21.46878335]
[1731200480870,21.46878335,200.12,200.06,21.46878335]
[1731200481492,21.46878335,200.11,200.05,21.46878335]
[1731200482172,21.46878335,200.1,200.05,20.0]
[1731200482368,21.46878335,200.06,199.99,15.6487]
[1731200482578,21.46878335,200.03,200.0,1.42]
[1731200482895,21.46878335,200.03,199.99,15.6487]
[1731200483277,21.46878335,200.03,200.0,4.986]
[1731200483778,21.46878335,200.04,200.0,4.986]
[1731200483984,21.46878335,200.05,199.95,2.21397992]
[1731200484171,21.46878335,200.05,199.99,21.46878335]
[1731200484372,21.46878335,200.05,199.98,21.46878335]
[1731200485396,21.46878335,200.04,199.99,24.986]
[1731200485771,21.46878335,200.05,199.99,26.45478335]
[1731200486171,21.46878335,200.05,200.0,20.0]
[1731200486797,21.46878335,200.05,199.98,41.46878335]
[1731200486975,21.46878335,200.05,199.99,21.46878335]
[1731200487294,21.46878335,200.04,200.0,20.0]
[1731200487687,21.46878335,200.05,200.0,20.0]
[1731200487987,21.46878335,200.04,199.98,41.46878335]
[1731200488388,21.46878335,200.04,199.98,20.0]
[1731200488899,21.46878335,200.05,199.99,21.46878335]
[1731200489198,21.46878335,200.05,200.0,20.0]
[1731200489795,21.46878335,200.11,200.04,21.46878335]
[1731200489992,21.46878335,200.12,200.06,21.46878335]
[1731200490891,21.46878335,200.12,200.05,41.46878335]
[1731200491199,15.8832,200.19,200.06,21.46878335]
[1731200491500,15.8832,200.19,200.02,20.0]
[1731200491501,21.46878335,200.12,200.05,21.46878335]
[1731200491802,21.46878335,200.09,200.06,20.0]
[1731200492004,21.46878335,200.08,200.02,1.28]
[1731200492184,15.7832,200.19,200.06,20.0]
[1731200492185,21.46878335,200.12,200.06,20.0]
[1731200492392,15.7832,200.19,200.06,20.0]
[1731200492393,21.46878335,200.13,200.07,21.46878335]
[1731200493096,21.46878335,200.12,200.07,20.0]
[1731200493300,21.46878335,200.13,200.07,41.46878335]
[1731200494484,21.46878335,200.13,200.07,31.46878335]
[1731200495090,15.7832,200.19,200.08,21.46878335]
[1731200495091,21.46878335,200.14,200.08,21.46878335]
[1731200495286,21.46878335,200.16,200.09,21.46878335]
[1731200495477,21.46878335,200.17,200.11,21.46878335]
[1731200495883,21.46878335,200.19,200.12,21.46878335]
[1731200496304,21.46878335,200.16,200.1,21.46878335]
[1731200496816,21.46878335,200.11,200.08,20.0]
[1731200497017,21.46878335,200.11,200.03,15.2384]
[1731200497300,21.46878335,200.08,200.05,1.28]
[1731200498004,21.46878335,200.08,200.03,15.2384]
[1731200498597,21.46878335,200.08,200.04,20.0]
[1731200499632,21.46878335,200.11,200.04,41.46878335]
[1731200499785,21.46878335,200.11,200.05,21.46878335]
[1731200500298,21.46878335,200.1,200.04,20.0]
[1731200500493,21.46878335,200.1,200.04,41.46878335]
[1731200502106,21.46878335,200.11,200.04,41.46878335]
[1731200503088,21.46878335,200.12,200.06,20.0]
[1731200503712,21.46878335,200.12,200.04,20.0]
[1731200503713,21.46878335,200.13,200.07,41.46878335]
[1731200503912,21.46878335,200.09,200.03,15.2384]
[1731200504113,21.46878335,200.08,200.04,20.21]
[1731200504314,21.46878335,200.07,200.03,15.2384]
[1731200504618,21.46878335,200.06,200.0,21.46878335]
[1731200504993,21.46878335,200.07,200.0,21.46878335]
[1731200505402,13.48401351,200.07,200.0,13.48401351]
[1731200505596,13.48401351,200.07,200.01,20.0]
[1731200506314,13.48401351,200.04,200.0,20.0]
[1731200506616,13.48401351,200.04,199.98,29.57341351]
[1731200506917,13.48401351,200.1,199.98,29.57341351]
[1731200506918,160.7,200.1,199.99,13.48401351]
[1731200507103,160.7,200.1,199.98,16.0894]
[1731200507104,13.48401351,200.03,199.98,16.0894]
[1731200507307,21.58473457,200.02,199.98,16.0894]
[1731200507702,21.58473457,200.01,199.96,0.1]
[1731200507916,21.58473457,200.0,199.96,0.1]
[1731200509312,21.58473457,199.99,199.96,0.1]
[1731200509515,6.1224,200.05,199.96,0.1]
[1731200509516,21.58473457,199.97,199.96,0.1]
[1731200510813,51.68401857,199.97,199.96,0.1]
[1731200511018,0.1,199.95,199.78,16.0894]
[1731200511229,21.58473457,199.87,199.81,21.58473457]
[1731200511418,21.58473457,199.88,199.82,21.58473457]
[1731200511728,21.58473457,199.88,199.81,21.58473457]
[1731200511935,21.58473457,199.88,199.82,21.58473457]
[1731200512428,21.58473457,199.89,199.82,21.58473457]
[1731200512605,21.58473457,199.89,199.83,21.58473457]
[1731200513020,21.58473457,199.9,199.84,41.58473457]
[1731200513219,21.58473457,199.92,199.86,21.58473457]
[1731200514328,21.58473457,199.91,199.86,20.0]
[1731200514531,21.58473457,199.93,199.86,41.58473457]
[1731200514910,21.58473457,199.94,199.87,21.58473457]
[1731200515833,21.58473457,199.94,199.86,20.0]
[1731200515834,21.58473457,199.96,199.9,21.58473457]
[1731200516015,21.58473457,199.97,199.91,21.58473457]
[1731200516222,21.58473457,199.96,199.9,21.58473457]
[1731200516939,21.58473457,199.98,199.92,21.58473457]
[1731200517114,21.58473457,199.99,199.93,21.58473457]
[1731200517316,21.58473457,200.0,199.93,21.58473457]
[1731200518131,21.58473457,199.99,199.93,21.58473457]
[1731200518329,21.58473457,199.98,199.92,21.58473457]
[1731200518533,21.58473457,199.97,199.9,21.58473457]
[1731200518728,0.1,200.06,199.9,21.58473457]
[1731200518729,21.58473457,199.96,199.9,20.0]
[1731200518945,21.58473457,199.96,199.9,41.58473457]
[1731200519130,21.58473457,200.0,199.93,21.58473457]
[1731200519329,21.58473457,200.01,199.94,21.58473457]
[1731200519534,21.58473457,199.99,199.92,41.58473457]
[1731200519710,21.58473457,199.97,199.92,20.0]
[1731200520235,21.58473457,199.98,199.92,41.58473457]
[1731200520436,21.58473457,199.99,199.93,21.58473457]
[1731200520614,21.58473457,200.0,199.94,21.58473457]
[1731200520817,21.58473457,200.0,199.95,20.0]
[1731200521331,0.1,200.09,199.95,20.0]
[1731200521537,0.1,200.1,199.97,20.0]
[1731200521538,21.58473457,200.02,199.97,20.0]
[1731200521831,21.58473457,200.04,199.98,21.58473457]
[1731200522036,21.58473457,200.07,200.01,41.58473457]
[1731200522217,21.58473457,200.09,200.03,20.0]
[1731200522414,0.1,200.16,200.03,20.0]
[1731200522415,21.58473457,200.07,200.03,20.0]
[1731200522621,21.58473457,200.04,199.98,21.58473457]
[1731200522828,21.58473457,200.03,199.99,20.0]
[1731200523132,21.58473457,200.03,199.99,19.5]
[1731200523336,21.58473457,200.05,199.99,21.58473457]
[1731200523635,21.58473457,200.1,200.03,21.58473457]
[1731200523832,21.58473457,200.11,200.05,21.58473457]